{"text_format":"1","workbook":"xlsx","n_sheets":4,"sheets":["Elolap","Tamogatastartalom","Adatok","Szamitasok"],"not_rendered":{"charts":0,"images":0,"macros":1,"external_links":0,"defined_names":55,"comments":1,"pivot_tables":0},"unopened":[],"bounds":{"document_bytes":16777216,"sheet_cells":100000,"rows_first":2000,"rows_last":500,"rows_between":2000,"halvings":0,"cell_chars":16384,"cell_head_chars":4096},"cells_cut":0,"cells_raw":0,"read":"whole","date_system":"1900"}

{"sheet":"Elolap","index":0,"n_rows":0,"n_cols":0,"rows_kept":0,"cut":false,"hidden":false,"merged":[]}

{"sheet":"Tamogatastartalom","index":1,"n_rows":39,"n_cols":16,"rows_kept":39,"cut":false,"hidden":false,"merged":[[2,5,2,7],[3,5,3,7],[4,5,4,7],[3,1,3,2],[5,1,5,2],[3,4,4,4],[0,11,1,12],[2,11,3,11],[2,12,3,12],[0,14,1,15],[2,14,3,14],[2,15,3,15]]}
[null,null,null,null,null,null,null,null,null,null,null,{"$f":"IF(SUM(M7:M126)<C16,\"A folyósítások összege kevesebb, mint a hitelösszeg\",\"A folyósítások összege több, mint a hitelösszeg\")","v":"A folyósítások összege több, mint a hitelösszeg"},null,null,{"$f":"IF(SUM(P7:P126)<C16,\"A törlesztések összege kevesebb, mint a hitelösszeg\",\"A törlesztések összege több, mint a hitelösszeg\")","v":"A törlesztések összege több, mint a hitelösszeg"}]
[]
[null,"Ügyfél neve: ",null,null,null,"Hitelösszeg (EUR)",null,null,{"$f":"IF(C9=\"HUF\",C16/C10,C16)","v":0},null,null,"Egyedi folyósítás dátuma","Folyósítás összege",null,"Egyedi törlesztés dátuma","Tőkeamortizáció egyedi törlesztés esetén"]
[null,null,null,null,null,{"$f":"IF(tenylegestt=0,\"Az ügylet nem finanszírozható\",\"Ténylegesen felvett hitel támogatástartalma (EUR)\")","v":"Az ügylet nem finanszírozható"},null,null,{"$f":"IF(C9=\"HUF\",C16/C10,C16)","v":0}]
[null,"Pénzügyi intézmény neve refinanszírozás esetén: ",null,null,null,"Hitelösszeg (HUF)",null,null,{"$f":"I3*C10","v":0}]
[]
[]
[null,"HITELKARAKTERISZTIKA"]
[null,"Hitel devizaneme"]
[null,"HUF/EUR árfolyam"]
[null,"Hitel fajtája/célja"]
[null,"Vállalat mérete",null,null,null,"Teljes(kumulált) támogatás intenzítása"]
[null,"Vállalkozás ágazata",null,null,null,"Beruházás elszámolható költsége (EUR)",{"$f":"eurelszamolhato","v":{"$error":"#DIV/0!"}}]
[null,"Beruházás helyszíne ",null,null,null,"Hitelre jutó támogatás intenzítása (EUR)",{"$f":"I4/eurelszamolhato","v":{"$error":"#DIV/0!"}}]
[null,{"$f":"IF(C15<C16,\"Nem lehet kisebb, mint a hitelösszeg\",\"Beruházás elszámolható költsége (\"&C9&\")\")","v":"Beruházás elszámolható költsége ()"},null,"maxhit",null,"Adott beruházási költséghez kapcsolódó teljes támogatás összege (EUR)",{"$f":"I4+C28+C29+C33+C38","v":0}]
[null,{"$f":"IF(IF(C9=\"HUF\",C16/arfolyam,C16)>D16,\"A hitelösszeg nem haladhatja meg a \"&D16/1000000&\" millió EUR-t!\",\"Hitelösszeg (\"&C9&\")\")","v":{"$error":"#N/A"}},null,{"$f":"IF(OR(Szamitasok!B15=0,C13=\"elsődleges agrár\"),IF(C11=\"Zöld beruházási hitel \"\"A\"\"\",10000000,15000000),20000000)","v":{"$error":"#N/A"}},null,"Teljes támogatás intenzítása",{"$f":"G15/eurelszamolhato","v":{"$error":"#DIV/0!"}}]
[null,"Hitel jóváhagyásának várható időpontja (EXIM döntés dátuma)",null,"min"]
[null,"Szerződéskötés várható dátuma",null,{"$f":"IF(C11=\"Zöld beruházási hitel \"\"A\"\"\",0,IF(C20<=EDATE(C18,72),OFFSET(Adatok!$I$17,MATCH(C12,Adatok!$I$14:$I$16,0),MATCH(C9,Adatok!$J$13:$K$13,0)),OFFSET(Adatok!$I$25,MATCH(C12,Adatok!$I$14:$I$16,0),MATCH(C9,Adatok!$J$13:$K$13,0))))","v":{"$error":"#N/A"}},null,"Maximális támogatási mértékek",{"$f":"IF((G16>G20),\"Nem finanszírozható\",\"\")","v":{"$error":"#DIV/0!"}}]
[null,"Első törlesztés várható dátuma",null,"max",null,null,"COVID 3.13"]
[null,{"$f":"IF(C20>EDATE(C18,96),\"A futamidő nem haladhatja meg a 8 évet\",\"Hitel végső lejáratának várható dátuma\")","v":"Hitel végső lejáratának várható dátuma"},null,{"$f":"IF(C11=\"Zöld beruházási hitel \"\"A\"\"\",OFFSET(Adatok!$I$13,MATCH(C12,Adatok!$I$14:$I$16,0),MATCH(C9,Adatok!$J$13:$K$13,0)),IF(C20<=EDATE(C18,72),OFFSET(Adatok!$I$21,MATCH(C12,Adatok!$I$14:$I$16,0),MATCH(C9,Adatok!$J$13:$K$13,0)),OFFSET(Adatok!$I$29,MATCH(C12,Adatok!$I$14:$I$16,0),MATCH(C9,Adatok!$J$13:$K$13,0))))","v":{"$error":"#N/A"}},null,"Maximális támogatásintenzitás (%)",{"$f":"IF(C30<>\"Egyéb jogcímen megítélt támogatás\",D21,MIN(C39,D21))","v":{"$error":"#DIV/0!"}}]
[null,{"$f":"IF(AND(tenylegeskamat>=D18,tenylegeskamat<=D20),\"Tényleges ügyleti kamat\",\"A kamat minimum \"&TEXT(D18,\"0,00%\")&\" maximum \"&TEXT(D20,\"0,00%\")&\" lehet!\")","v":{"$error":"#N/A"}},null,{"$f":"IF(C11=\"Zöld beruházási hitel \"\"A\"\"\",0.15,0.3)+IF(C13=\"elsődleges agrár\",0,IF(eurelszamolhato>50*10^6,Szamitasok!C15,Szamitasok!B15))+Szamitasok!B13","v":{"$error":"#DIV/0!"}},null,"Maximális hitelösszeghez tartozó támogatástartalom (EUR)"]
[null,"Törlesztés módja"]
[null,{"$f":"IF(torlesztes=\"Egyenlő tőke\",\"Kamatfizetés/tőketörlesztés gyakorisága\",\"Kamatfizetés gyakorisága\")","v":"Kamatfizetés gyakorisága"}]
[]
[null,"Korábban megítélt állami támogatások"]
[]
[null,"Azonos elszámolható költségkörhöz kapcsolódó kapcsolódóan megítélt támogatások"]
[null,"De minimis alapon megítélt támogatások (EUR)"]
[null,"3.1-es átmeneti jogcímen kapott azonos elszámolható költségkörhöz kapcsolódó támogatások (EUR)"]
[null,"ÁCSR/EMVA csoportmentességi támogatásokhoz kapcsolódó azonos elszámolható költséghez megítélt állami támogatások","nem kapcsolódik"]
[]
[null,"Azonos megyében folytatott működés során megítélt regionális beruházási támogatások"]
[null,{"$f":"IF(AND(C30=\"GBER 14 és Egyéb jogcímen megítélt támogatás\",C33=0),\"A regionális támogatási összegét meg kell adni\",\"Regionális alapon megítélt beruházási támogatások teljes összege (14. cikk), az azonos tevékenységre, azonos megyében (EUR)\")","v":"Regionális alapon megítélt beruházási támogatások teljes összege (14. cikk), az azonos tevékenységre, azonos megyében (EUR)"},0]
[]
[null,"Egyéb támogatás"]
[null,"Korábban megítélt támogatások rendeleti alapja"]
[null,"Korábban megítélt állami támogatások jogcíme"]
[null,"Korábban megítélt állami támogatások összege (EUR)",0]
[null,"Korábban megítélt egyéb támogatás keretében adható max. támogatás intenzitás mértéke",0.2]

{"sheet":"Adatok","index":2,"n_rows":32,"n_cols":16,"rows_kept":32,"cut":false,"hidden":true,"merged":[[9,0,9,11],[0,12,0,22],[0,0,0,11]]}
[]
["GBER 14 jogcímen megítélt támogatás","Egyéb GBER",null,null,null,null,null,null,null,null,null,null,null,null,null,"Törlesztésgyakoriság"]
["Egyéb jogcímen megítélt támogatás","EMVA",null,null,null,null,null,null,null,null,null,null,null,null,null,"Havi"]
["GBER 14 és Egyéb jogcímen megítélt támogatás","Egyéb",null,null,null,null,null,null,null,null,null,null,null,null,null,"Negyedéves"]
["nem kapcsolódik",null,null,null,null,null,null,null,null,null,null,null,null,null,null,"Féléves"]
[]
[]
[]
[]
["Regionális támogatási intenzitások"]
[null,"Nagyvállalat",null,"Intenzitás","MAX Támogatástartalom (mio EUR)"]
["Select",0,null,0.5,37.5]
["Dél-Alföld",0.5,null,0.35,26.25,null,null,"A","max","HUF","EUR"]
["Dél-Dunántúl",0.5,null,0.3,22.5,null,null,null,"Mikró/Kis",3.6999999999999998E-2,4.4999999999999997E-3]
["Észak-Alföld",0.5,null,0.25,18.75,null,null,null,"Közepes",3.6999999999999998E-2,4.4999999999999997E-3]
["Észak-Magyarország",0.5,null,0.2,15,null,null,null,"Nagy",4.7E-2,1.4999999999999999E-2]
["Közép-Dunántúl",0.3,null,0,0,null,null,"B","<6 év min"]
["Pest",0.5,null,null,null,null,null,null,"Mikró/Kis",1.1599999999999999E-2,5.4999999999999997E-3]
["Nyugat-Dunántúl",0.3,null,null,null,null,null,null,"Közepes",1.1599999999999999E-2,5.4999999999999997E-3]
["Budapest",0,null,null,null,null,null,null,"Nagy",2.06E-2,1.4500000000000001E-2]
[null,null,null,null,null,null,null,null,"<6 év max"]
[null,null,null,null,null,null,null,null,"Mikró/Kis",3.6999999999999998E-2,5.4999999999999997E-3]
[null,null,null,null,null,null,null,null,"Közepes",3.6999999999999998E-2,5.4999999999999997E-3]
[null,null,null,null,null,null,null,null,"Nagy",4.7E-2,1.4999999999999999E-2]
[null,null,null,null,null,null,null,null,"<8 év min"]
[null,null,null,null,null,null,null,null,"Mikró/Kis",2.8000000000000001E-2,2.1899999999999999E-2]
[null,null,null,null,null,null,null,null,"Közepes",2.8000000000000001E-2,2.1899999999999999E-2]
[null,null,null,null,null,null,null,null,"Nagy",3.7999999999999999E-2,3.1899999999999998E-2]
[null,null,null,null,null,null,null,null,"<8 év max"]
[null,null,null,null,null,null,null,null,"Mikró/Kis",3.6999999999999998E-2,2.1999999999999999E-2]
[null,null,null,null,null,null,null,null,"Közepes",3.6999999999999998E-2,2.1999999999999999E-2]
[null,null,null,null,null,null,null,null,"Nagy",4.7E-2,3.2000000000000001E-2]

{"sheet":"Szamitasok","index":3,"n_rows":23,"n_cols":5,"rows_kept":23,"cut":false,"hidden":true,"merged":[[19,0,19,9],[17,0,17,9],[21,0,21,9],[0,0,0,9],[2,0,2,1],[6,0,6,9],[7,0,7,9]]}
["Kizárók és KO-k"]
[null,null,null,"Váll. Méret","Régió"]
["Szorzó értéke",null,null,{"$f":"Tamogatastartalom!C12","v":0},{"$f":"Tamogatastartalom!C14","v":0}]
[{"$f":"PRODUCT(C4:W4)","v":0},"De minimis"]
[{"$f":"PRODUCT(C5:W5)","v":1},"14-es ",null,null,{"$f":"IF(E3=\"Budapest\",0,1)","v":1}]
[1,"17-es",null,{"$f":"IF(D3=\"Nagy\",0,1)","v":1}]
["14-es cikk"]
["R szorzó értéke"]
["Elszámolható ktg-ek EUR-ban",{"$f":"Tamogatastartalom!C15/IF(Tamogatastartalom!C9<>\"EUR\",arfolyam,1)","v":{"$error":"#DIV/0!"}}]
["A Elszámolható költségek",{"$f":"IF((B9-C10)>0,C10,B9)","v":{"$error":"#DIV/0!"}},50000000]
["B Elszámolható költségek",{"$f":"IF(B10<C10,0,IF(B9-C11<0,B9-C10,C10))","v":{"$error":"#DIV/0!"}},100000000]
["C elszámolható költségek","nincs!"]
["KKV bónusz",{"$f":"IF(D3=\"Mikró/Kis\",0.2,IF(D3=\"Közepes\",0.1,0))","v":0},{"$f":"IF(D3=\"Mikró/Kis\",0.2,IF(D3=\"Közepes\",0.1,0))*IF(B9<50*10^6,1,0)","v":{"$error":"#DIV/0!"}}]
["Kaphat?",{"$f":"IF(B15>0,1,0)","v":{"$error":"#N/A"}}]
["Alap intenzitás",{"$f":"VLOOKUP(Tamogatastartalom!C14,Adatok!A12:B20,2,FALSE)","v":{"$error":"#N/A"}},{"$f":"B15*(B10+0.5*(B11))/eurelszamolhato","v":{"$error":"#N/A"}}]
["R szorzó értéke a támogatási térkép alapján",{"$f":"(B15+B13)*B14","v":{"$error":"#N/A"}}]
["Max. TT (EUR)",{"$f":"VLOOKUP(B15,Adatok!D12:E17,2,FALSE)*10^6","v":{"$error":"#N/A"}}]
["17-es cikk"]
["Vállalatméret-szorzó",{"$f":"IF(D3=\"Nagy\",0,IF(D3=\"Mikró/Kis\",0.2,0.1))","v":0.1}]
["HUF érték"]
["Elszámolható ktg-ek HUF-ban",{"$f":"IF(Tamogatastartalom!C9=\"EUR\",Tamogatastartalom!C15*arfolyam,Tamogatastartalom!C15)","v":0}]
["Hitel/támogatástartalom arány"]
["Hitelösszeg",{"$f":"Tamogatastartalom!C16","v":0}]